bitfinex/quotes_ETHUSD_20240910
["timestamp","ask_amount","ask_price","bid_price","bid_amount"]
[1725929062017,0.08379713,2351.9,2351.1,2.4549]
[1725929062018,2.2974,2351.8,2351.1,2.4549]
[1725929062220,2.2974,2351.8,2351.1,6.5264374]
[1725929062400,2.2974,2351.8,2351.2,1.41387761]
[1725929062601,2.2974,2351.8,2351.3,0.08505071]
[1725929062844,2.2974,2351.8,2351.2,0.08505079]
[1725929063048,2.2974,2351.8,2351.2,0.83548559]
[1725929063341,2.2974,2351.8,2351.3,0.08504637]
[1725929066224,2.2974,2351.8,2351.2,0.7504348]
[1725929069737,2.2974,2351.8,2351.3,0.08504228]
[1725929070463,2.2974,2351.8,2351.2,0.7504348]
[1725929070766,2.2974,2351.8,2351.3,0.92689919]
[1725929071273,2.4236,2351.6,2351.2,0.7504348]
[1725929071563,2.4236,2351.6,2351.1,4.0715374]
[1725929072236,2.4236,2351.6,2351.2,0.08504853]
[1725929074842,2.4236,2351.6,2351.1,6.06323507]
[1725929075871,2.4236,2351.6,2351.2,1.32779943]
[1725929076170,2.4236,2351.6,2351.3,0.73910345]
[1725929076367,2.2983,2351.8,2351.3,0.73910345]
[1725929076571,2.2983,2351.8,2351.3,0.82414879]
[1725929079079,2.2983,2351.8,2351.3,0.73910345]
[1725929079681,0.08379713,2351.9,2351.4,0.80480605]
[1725929079868,2.46219713,2351.9,2351.5,0.8048052]
[1725929080073,2.46219713,2351.9,2351.1,0.89285976]
[1725929080282,2.46219713,2351.9,2351.2,3.3209631]
[1725929080600,2.46219713,2351.9,2351.1,0.89285976]
[1725929080742,2.3784,2351.7,2351.1,1.99292833]
[1725929080943,0.08379713,2351.6,2351.1,3.0]
[1725929081343,0.08379713,2351.6,2351.0,3.89285976]
[1725929081572,0.08379713,2351.6,2351.1,3.32200595]
[1725929081892,0.08379713,2351.6,2351.0,3.89285976]
[1725929082187,2.3784,2351.6,2351.1,3.32220063]
[1725929082359,2.3784,2351.6,2351.0,0.89285976]
[1725929082565,2.3784,2351.6,2351.1,3.3227022]
[1725929082898,2.3784,2351.6,2351.0,2.51371489]
[1725929083061,2.3784,2351.6,2351.1,3.32290082]
[1725929083252,2.3784,2351.6,2351.2,1.32941486]
[1725929083567,2.3784,2351.6,2351.0,2.51371489]
[1725929083775,2.3784,2351.6,2351.1,4.8621784]
[1725929084075,2.3784,2351.6,2351.2,1.32949009]
[1725929084387,2.3784,2351.6,2351.1,2.43131294]
[1725929084584,2.3784,2351.6,2351.2,3.32455215]
[1725929084784,2.3784,2351.6,2351.1,2.43131294]
[1725929084994,2.3784,2351.6,2351.2,3.32454778]
[1725929085195,2.3026,2351.4,2350.8,0.89285976]
[1725929085399,2.3026,2351.2,2350.9,3.32564825]
[1725929085583,2.3026,2351.2,2350.7,0.89285976]
[1725929085791,0.08379713,2351.1,2350.8,3.32578577]
[1725929085970,2.2617,2351.0,2350.7,1.7956632]
[1725929086296,2.2617,2351.0,2350.8,1.33033898]
[1725929086460,2.2617,2351.0,2350.7,0.90280344]
[1725929086661,2.4554,2351.2,2350.8,1.41541727]
[1725929086884,2.4554,2351.2,2350.9,1.5621189]
[1725929087056,2.4554,2351.2,2350.9,0.23182207]
[1725929088746,2.4554,2351.2,2351.0,1.33095121]
[1725929088913,2.4554,2351.2,2350.9,0.23182207]
[1725929089203,0.08379713,2351.5,2351.0,3.41245099]
[1725929089204,2.2516,2351.4,2351.0,3.41245099]
[1725929089357,2.2516,2351.4,2351.1,3.3273075]
[1725929089558,2.2516,2351.4,2351.2,1.33130699]
[1725929089765,2.2516,2351.4,2351.0,1.9722485]
[1725929089963,2.2516,2351.4,2351.1,3.32824171]
[1725929090296,7.32,2351.6,2351.2,3.32822575]
[1725929090498,14.83986149,2351.9,2351.3,1.33176574]
[1725929090499,2.50889713,2351.8,2351.3,1.33176574]
[1725929090700,0.08379713,2351.7,2351.1,0.89285976]
[1725929090911,0.08379713,2351.7,2351.2,3.32941702]
[1725929091205,0.08379713,2351.7,2351.3,1.33176681]
[1725929091399,2.3289,2351.6,2351.1,0.89285976]
[1725929091604,2.3289,2351.6,2351.2,4.21727708]
[1725929091902,2.3289,2351.6,2351.1,0.89285976]
[1725929092087,2.3289,2351.6,2351.2,3.324477]
[1725929092394,2.3289,2351.6,2351.1,0.89285976]
[1725929092606,2.3289,2351.6,2351.2,3.32575885]
[1725929092768,0.08379713,2351.5,2351.3,1.33030354]
[1725929093102,0.08379713,2351.5,2351.1,1.65544484]
[1725929093304,0.08379713,2351.5,2351.2,3.32579038]
[1725929093467,0.08379713,2351.5,2351.3,3.32673913]
[1725929093672,0.08379713,2351.5,2351.2,0.89285976]
[1725929093868,0.08379713,2351.5,2351.3,3.32737133]
[1725929094099,0.08379713,2351.5,2351.2,0.89285976]
[1725929094407,0.08379713,2351.5,2351.3,3.32737126]
[1725929094609,2.51299713,2351.7,2351.2,0.89285976]
[1725929094903,2.9412861,2351.7,2351.3,3.32851205]
[1725929095130,2.9412861,2351.7,2351.2,0.89285976]
[1725929095404,2.9412861,2351.7,2351.3,3.328496]
[1725929095613,2.9412861,2351.7,2351.4,1.3313984]
[1725929095773,2.9412861,2351.7,2351.2,0.89285976]
[1725929095976,2.51299713,2351.7,2351.3,3.32854773]
[1725929096230,2.51299713,2351.7,2351.2,0.89285976]
[1725929096406,2.51299713,2351.7,2351.3,3.32855751]
[1725929096611,2.51299713,2351.7,2351.2,0.89285976]
[1725929096775,2.51299713,2351.7,2351.3,3.32842165]
[1725929096975,2.51299713,2351.7,2351.4,1.33136866]
[1725929097176,2.51299713,2351.7,2351.2,0.89285976]
[1725929097376,2.51299713,2351.7,2351.3,3.32843778]
[1725929097601,2.51299713,2351.7,2351.2,0.89285976]
[1725929097802,2.51299713,2351.7,2351.3,3.32833588]
[1725929098009,2.51299713,2351.7,2351.2,0.89285976]
[1725929098308,2.51299713,2351.7,2351.3,3.32833578]
[1725929098511,2.441,2351.6,2351.2,0.89285976]
[1725929098677,2.441,2351.4,2351.3,3.32829902]
[1725929099390,2.441,2351.4,2351.3,1.33131961]
[1725929100927,2.441,2351.4,2351.3,3.32829691]
[1725929101622,2.441,2351.4,2351.3,3.32822616]
[1725929101913,2.441,2351.4,2351.0,0.89285976]
[1725929101914,2.69347971,2351.4,2351.0,0.89285976]
[1725929102123,0.08379713,2351.3,2351.1,3.32829383]
[1725929102278,0.08379713,2351.3,2351.0,0.89285976]
[1725929102483,0.08379713,2351.3,2351.1,3.32804963]
[1725929102707,0.08379713,2351.3,2351.0,0.89285976]
[1725929102897,0.08379713,2351.3,2351.1,3.32808583]
[1725929103096,0.08379713,2351.3,2351.2,1.33123433]
[1725929103818,0.08379713,2351.3,2350.9,0.89285976]
[1725929103819,2.4252,2351.3,2350.9,0.89285976]
[1725929104124,0.08379713,2351.2,2351.0,3.32796866]
[1725929104422,0.08379713,2351.2,2351.1,1.33118746]
[1725929104980,2.4252,2351.3,2351.1,1.33118746]
[1725929105185,2.4252,2351.3,2351.0,0.89285976]
[1725929105381,0.08379713,2351.2,2351.1,1.33098063]
[1725929105613,0.08379713,2351.2,2351.1,3.32745897]
[1725929105800,2.4252,2351.3,2351.1,1.33098063]
[1725929105983,2.4252,2351.3,2350.9,0.89285976]
[1725929106325,2.4252,2351.3,2351.0,4.44309646]
[1725929106496,2.4252,2351.3,2351.1,3.32736515]
[1725929106692,2.4252,2351.3,2351.0,0.89285976]
[1725929106899,0.08379713,2351.6,2351.1,3.32741528]
[1725929107238,0.08379713,2351.6,2351.2,3.32739054]
[1725929107239,2.4068,2351.5,2351.2,3.32739054]
[1725929107531,0.08379713,2351.4,2351.2,0.55547991]
[1725929107680,0.08379713,2351.4,2351.1,0.89285976]
[1725929107879,0.08379713,2351.4,2351.2,3.32734658]
[1725929108127,0.08379713,2351.4,2351.1,0.89285976]
[1725929108278,0.08379713,2351.4,2351.2,3.32732758]
[1725929108479,0.08379713,2351.4,2351.1,0.89285976]
[1725929108683,0.08379713,2351.4,2351.2,3.3272959]
[1725929108927,0.08379713,2351.4,2351.1,1.29354045]
[1725929109124,0.08379713,2351.4,2351.2,3.32730238]
[1725929109279,0.08379713,2351.4,2351.1,1.29354045]
[1725929109480,0.08379713,2351.4,2350.9,0.89285976]
[1725929109481,2.435,2351.3,2350.9,0.89285976]
[1725929109714,2.3182,2351.1,2350.7,0.89285976]
[1725929109883,0.08379713,2351.0,2350.8,3.32766667]
[1725929110100,0.08379713,2351.0,2350.6,0.89285976]
[1725929110292,0.08379713,2351.0,2350.7,3.32693823]
[1725929110493,2.3182,2350.9,2350.6,0.89285976]
[1725929110723,0.08379713,2350.8,2350.7,1.3287058]
[1725929111386,2.3182,2350.9,2350.5,0.89285976]
[1725929111638,2.43039713,2351.2,2350.6,4.21375336]
[1725929111800,2.43039713,2351.2,2350.7,4.12026148]
[1725929112139,0.08379713,2351.3,2350.8,3.32080552]
[1725929112286,0.08379713,2351.3,2350.9,3.32080552]
[1725929112490,0.08379713,2351.3,2351.0,3.32069243]
[1725929112688,2.50139713,2351.6,2351.1,1.98964641]
[1725929112887,2.50139713,2351.6,2351.0,0.89285976]
[1725929113110,0.08379713,2351.5,2351.1,3.32047213]
[1725929113297,0.08379713,2351.5,2351.0,0.89285976]
[1725929113633,0.08379713,2351.5,2351.1,3.32052903]
[1725929113824,0.08379713,2351.5,2351.0,0.89285976]
[1725929113999,0.08379713,2351.5,2351.1,3.7918747]
[1725929114210,0.08379713,2351.5,2351.1,0.47132689]
[1725929114539,2.4944,2351.8,2351.1,0.47132689]
[1725929114540,0.08379713,2351.7,2351.2,1.32822326]
[1725929114713,0.08379713,2351.7,2351.1,0.47132689]
[1725929115043,0.08379713,2351.7,2351.2,3.32055107]
[1725929115188,0.08379713,2351.7,2351.2,0.60192865]
[1725929115389,0.08379713,2351.7,2351.1,1.36418665]
[1725929115691,0.08379713,2351.7,2351.2,3.32068966]
[1725929115919,0.08379713,2351.7,2351.1,1.36418665]
[1725929116092,0.08379713,2351.7,2351.2,3.32068568]
[1725929116422,0.08379713,2351.7,2351.1,1.36418665]
[1725929116592,0.08379713,2351.7,2351.2,3.59072325]
[1725929116786,0.08379713,2351.7,2351.2,0.26987354]
[1725929117630,0.08379713,2351.7,2351.3,1.32838159]
[1725929117789,0.08379713,2351.7,2351.2,0.26987354]
[1725929119227,4.0715374,2352.0,2351.1,0.47132689]
[1725929119228,2.4092,2351.6,2351.1,0.47132689]
[1725929119433,0.08379713,2351.5,2351.2,1.32850914]
[1725929119593,0.08379713,2351.5,2351.1,0.89285976]
[1725929119783,0.08379713,2351.5,2351.2,3.3213534]
[1725929119985,0.08379713,2351.5,2351.1,0.89285976]
[1725929120202,0.08379713,2351.5,2351.2,3.32134563]
[1725929120399,0.08379713,2351.5,2351.1,0.89285976]
[1725929120636,0.08379713,2351.5,2351.2,3.32155513]
[1725929120787,2.4919,2351.4,2351.1,0.89285976]
[1725929120992,2.4919,2351.4,2351.0,1.33454875]
[1725929120993,0.08379713,2351.3,2351.2,1.32862182]
[1725929121193,0.08379713,2351.3,2351.1,0.89285976]
[1725929121420,0.08379713,2351.3,2351.0,0.89285976]
[1725929121609,0.08379713,2351.3,2351.1,3.32179133]
[1725929121812,0.08379713,2351.3,2351.2,1.32872035]
[1725929122421,0.08379713,2351.3,2351.0,0.89285976]
[1725929122641,0.08379713,2351.3,2351.1,3.32209072]
[1725929122845,0.08379713,2351.3,2351.2,1.32883629]
[1725929123014,0.08379713,2351.3,2351.0,0.89285976]
[1725929123227,0.08379713,2351.3,2351.1,3.32208953]
[1725929123422,0.34136684,2351.3,2351.2,1.32883581]
[1725929123623,2.3106,2351.2,2350.9,0.89285976]
[1725929123843,0.08379713,2351.1,2350.8,0.89285976]
[1725929124023,0.08379713,2351.1,2350.9,3.32263563]
[1725929124216,0.08379713,2351.1,2350.7,0.89285976]
[1725929124418,0.08379713,2351.1,2350.8,3.32237897]
[1725929124616,0.08379713,2351.1,2350.9,1.32895159]
[1725929124840,0.32323684,2351.1,2350.7,0.89285976]
[1725929125043,0.08379713,2351.1,2350.8,3.32270028]
[1725929125364,0.08379713,2351.1,2350.7,0.89285976]
[1725929125560,0.08379713,2351.1,2350.8,3.32244613]
[1725929125720,0.08379713,2351.1,2350.9,1.32897845]
[1725929125919,0.08379713,2351.1,2350.7,0.89285976]
[1725929125920,2.464,2351.0,2350.7,0.89285976]
[1725929126286,0.08379713,2350.9,2350.8,3.32269323]
[1725929129544,0.08379713,2350.9,2350.6,0.89285976]
[1725929129721,0.08379713,2350.9,2350.7,3.32034713]
[1725929130068,0.08379713,2350.9,2350.6,0.89285976]
[1725929130252,0.08379713,2350.9,2350.7,3.3203439]
[1725929130571,0.08379713,2350.9,2350.5,0.89285976]
[1725929130780,0.08379713,2350.9,2350.6,3.3201582]
[1725929130935,0.08379713,2350.9,2350.7,3.32016189]
[1725929131131,0.08379713,2350.9,2350.6,0.89285976]
[1725929131360,0.08379713,2350.9,2350.7,1.32790054]
[1725929131544,0.08379713,2350.9,2350.5,1.31895976]
[1725929131751,0.08379713,2350.9,2350.6,3.31965452]
[1725929132063,0.08379713,2350.9,2350.7,1.32786181]
[1725929132262,0.08379713,2350.9,2350.6,0.89285976]
[1725929132573,0.08379713,2350.9,2350.7,3.31932597]
[1725929132774,0.08379713,2350.9,2350.6,0.89285976]
[1725929133075,0.08379713,2350.9,2350.7,3.31923712]
[1725929133275,0.08379713,2350.9,2350.6,0.89285976]
[1725929133572,0.08379713,2350.9,2350.7,3.31899602]
[1725929133734,0.08379713,2350.9,2350.6,0.89285976]
[1725929133935,0.08379713,2350.9,2350.7,3.318889]
[1725929134134,0.08379713,2350.9,2350.6,0.89285976]
[1725929134437,0.08379713,2350.9,2350.7,1.32747388]
[1725929134641,0.08379713,2350.9,2350.5,1.31895976]
[1725929134864,0.08379713,2350.9,2350.6,3.31858226]
[1725929135170,0.08379713,2350.9,2350.7,1.3274329]
[1725929135346,0.08379713,2350.9,2350.5,1.31895976]
[1725929135545,0.08379713,2350.9,2350.6,4.21126597]
[1725929135770,0.08379713,2350.9,2350.7,1.32736248]
[1725929135979,0.08379713,2350.9,2350.6,0.89285976]
[1725929136188,0.08379713,2350.9,2350.7,3.31839706]
[1725929136394,0.08379713,2350.9,2350.5,1.31895976]
[1725929136675,0.08379713,2350.9,2350.6,4.21113421]
[1725929136891,0.08379713,2350.9,2350.7,3.31832655]
[1725929137040,0.08379713,2350.9,2350.6,0.89285976]
[1725929137240,0.08379713,2350.9,2350.7,3.31835557]
[1725929137475,0.08379713,2350.9,2350.6,0.89285976]
[1725929137650,0.08379713,2350.9,2350.7,1.32734093]
[1725929137840,0.08379713,2350.9,2350.6,0.89285976]
[1725929138062,0.08379713,2350.9,2350.7,1.3273412]
[1725929138279,0.08379713,2350.9,2350.3,4.09309834]
[1725929138280,4.0715374,2350.8,2350.3,0.89285976]
[1725929138456,2.34749713,2350.7,2350.0,0.89285976]
[1725929138647,2.2637,2350.6,2349.9,0.89285976]
[1725929138846,0.08379713,2350.5,2350.0,1.32754048]
[1725929139153,0.31854684,2350.5,2349.8,0.89285976]
[1725929139351,0.31854684,2350.5,2349.7,0.89285976]
[1725929139556,0.31854684,2350.5,2349.8,3.31685825]
[1725929139557,2.3243,2350.4,2349.8,3.31685825]
[1725929139772,0.08379713,2350.3,2349.7,0.89285976]
[1725929139970,0.08379713,2350.3,2349.8,3.31686532]
[1725929140170,0.08379713,2350.3,2349.6,1.31915976]
[1725929140481,0.08379713,2350.3,2349.7,3.31513663]
[1725929140654,0.08379713,2350.3,2349.8,1.32605465]
[1725929140858,0.08379713,2350.3,2349.7,0.67198528]
[1725929141157,0.08379713,2350.3,2349.8,1.3260479]
[1725929141367,0.08379713,2350.3,2349.7,0.67198528]
[1725929141771,0.08379713,2350.3,2349.8,1.32550005]
[1725929141990,0.08379713,2350.3,2349.8,0.74732876]
[1725929143861,2.3243,2350.4,2349.8,3.11082876]
[1725929144062,0.08379713,2350.3,2349.8,3.11082876]
[1725929144705,2.4976,2350.2,2349.8,0.74732876]
[1725929144999,0.08379713,2350.1,2349.6,0.4263]
[1725929146656,0.08379713,2350.1,2349.5,0.4263]
[1725929147271,2.2975,2350.0,2349.3,3.69195976]
[1725929147472,2.2975,2350.2,2349.4,4.15714522]
[1725929147679,2.2975,2350.2,2349.5,5.75259697]
[1725929147883,2.2975,2350.2,2349.6,3.30899742]
[1725929148098,2.2975,2350.2,2349.6,0.78343888]
[1725929148397,2.2975,2350.2,2349.7,0.08510687]
[1725929152364,0.08379713,2350.3,2349.7,0.08510687]
[1725929152612,7.32,2350.5,2349.8,2.2724]
[1725929152812,0.08379713,2350.5,2349.8,2.2724]
[1725929153127,0.08379713,2350.5,2349.9,0.81039663]
[1725929154978,0.08379713,2350.5,2349.9,0.72529952]
[1725929155176,0.08379713,2350.5,2349.8,2.2724]
[1725929156732,0.08379713,2350.5,2349.6,5.06752928]
[1725929156733,2.4012,2350.4,2349.6,5.06752928]
[1725929156940,0.08379713,2350.3,2349.6,3.08673888]
[1725929157093,0.08379713,2350.3,2349.6,2.3033]
[1725929160096,0.08379713,2350.3,2349.6,4.28578982]
[1725929160820,0.08379713,2350.3,2349.6,4.28444085]
[1725929161136,2.319,2350.2,2349.6,4.28444085]
[1725929161290,0.08379713,2350.1,2349.6,4.28444085]
[1725929161496,0.08379713,2350.1,2349.6,5.25268041]
[1725929166803,2.4233,2350.4,2349.7,4.1950526]
[1725929167016,7.32,2350.5,2350.0,2.4412]
[1725929167218,7.32,2350.5,2350.1,2.21193214]
[1725929167412,7.32,2350.5,2350.2,0.46531321]
[1725929169545,7.32,2350.5,2350.3,3.30699512]
[1725929169746,2.39,2350.8,2350.2,1.35817297]
[1725929170056,7.32,2351.0,2350.4,4.0715374]
[1725929170346,11.83986149,2351.4,2350.4,4.0715374]
[1725929170347,7.32,2351.3,2350.7,2.4223]
[1725929170519,2.3905,2351.5,2350.8,4.80598738]
[1725929170723,7.32,2351.6,2351.0,2.4223]
[1725929170910,7.40379713,2351.6,2351.1,0.0850576]
[1725929171532,7.32,2351.6,2351.1,0.0850576]
[1725929171851,7.40379713,2351.6,2351.0,2.4223]
[1725929173113,2.466,2351.5,2350.7,1.31915976]
[1725929173313,0.08379713,2351.4,2350.8,1.32215413]
[1725929173649,0.08379713,2351.4,2350.7,0.4263]
[1725929173809,0.08379713,2351.4,2350.8,1.32193455]
[1725929174009,0.08379713,2351.4,2350.7,3.4263]
[1725929174242,0.08379713,2351.4,2350.8,1.99725537]
[1725929174425,0.08379713,2351.4,2350.8,0.67531598]
[1725929174840,0.08379713,2351.4,2350.9,2.4834]
[1725929175154,0.08379713,2351.5,2350.9,2.4834]
[1725929175342,0.08379713,2351.5,2350.9,2.56846232]
[1725929175656,0.08379713,2351.5,2351.0,0.32437783]
[1725929175812,7.32,2351.6,2351.1,0.08505875]
[1725929176013,7.40379713,2351.6,2351.1,0.08505875]
[1725929176848,7.40379713,2351.6,2351.0,0.32437783]
[1725929177836,7.40379713,2351.6,2350.9,2.4834]
[1725929178042,7.40379713,2351.6,2350.7,3.4263]
[1725929178043,2.4691,2351.5,2350.7,3.4263]
[1725929178247,0.08379713,2351.4,2350.7,3.4263]
[1725929178813,2.4691,2351.5,2350.9,2.2564]
[1725929179052,7.32,2351.6,2351.0,0.0850566]
[1725929179280,7.40379713,2351.6,2351.0,0.31920226]
[1725929179485,2.3399,2351.5,2350.7,5.6827]
[1725929179682,0.08379713,2351.4,2350.7,5.6827]
[1725929180594,2.3863,2351.3,2350.7,3.0]
[1725929180895,0.08379713,2351.2,2350.4,2.284]
[1725929181125,2.3863,2351.3,2350.5,8.09827363]
[1725929181261,2.3863,2351.3,2350.6,2.284]
[1725929185111,9.6266,2351.6,2350.8,2.2576]
[1725929185317,9.6266,2351.6,2350.9,4.15659533]
[1725929185618,9.6266,2351.6,2351.0,0.64141953]
[1725929185929,9.6266,2351.6,2350.8,2.2576]
[1725929186211,0.08379713,2351.5,2350.8,2.2576]
[1725929186971,0.08379713,2351.5,2350.8,5.6839]
[1725929187171,9.6266,2351.6,2350.9,0.08505799]
[1725929187416,0.08379713,2351.5,2350.8,5.6839]
[1725929187715,0.08379713,2351.5,2350.9,0.97554374]
[1725929189722,2.3935,2351.4,2350.9,0.97554374]
[1725929192038,0.08379713,2351.5,2351.0,2.4728]
[1725929192535,0.08379713,2351.5,2351.0,2.55785823]
[1725929193042,0.08379713,2351.5,2350.9,0.97554374]
[1725929193339,0.08379713,2351.5,2351.0,0.64483437]
[1725929195235,2.2965,2352.2,2351.3,4.0715374]
[1725929195437,2.2965,2352.2,2351.4,3.0]
[1725929195438,2.38029713,2352.2,2351.4,3.0]
[1725929195646,0.08379713,2352.1,2351.5,0.70715374]
[1725929195930,2.2965,2352.0,2351.3,6.3960374]
[1725929196136,0.08379713,2351.9,2351.3,6.3960374]
[1725929197236,2.433,2352.3,2351.5,4.0715374]
[1725929197539,2.433,2352.3,2351.6,2.34793074]
[1725929197766,2.433,2352.3,2351.7,4.71348421]
[1725929197934,2.433,2352.3,2351.8,0.08503074]
[1725929199270,2.424,2352.7,2351.8,0.08503074]
[1725929199427,0.08379713,2352.6,2351.8,0.08503074]
[1725929199627,0.08379713,2352.6,2351.8,1.26010224]
[1725929200023,0.08379713,2352.6,2351.9,2.2965]
[1725929200219,2.50779713,2352.7,2352.0,0.08501916]
[1725929200861,2.50779713,2352.7,2352.1,4.0715374]
[1725929200862,2.424,2352.7,2352.1,4.0715374]
[1725929201024,7.32,2353.0,2352.2,0.50066857]
[1725929201225,0.08379713,2352.9,2352.3,2.53171291]
[1725929201641,2.352,2353.1,2352.3,6.60325031]
[1725929201842,0.08379713,2353.0,2352.3,6.60325031]
[1725929202181,7.32,2353.2,2352.5,4.0715374]
[1725929202468,7.32,2353.2,2352.6,0.70715374]
[1725929203143,7.32,2353.2,2352.7,0.08499458]
[1725929203339,2.2977,2353.3,2352.7,0.08499458]
[1725929207166,0.08379713,2353.2,2352.6,0.70715374]
[1725929207389,2.2977,2353.3,2352.6,0.70715374]
[1725929207592,2.2977,2353.3,2352.7,0.47786911]
[1725929208668,0.08379713,2353.2,2352.7,0.47786911]
[1725929210503,0.08379713,2353.2,2352.7,0.56286799]
[1725929211208,0.08379713,2353.2,2352.7,0.47786911]
[1725929211574,0.08379713,2353.2,2352.7,2.88536911]
[1725929211904,0.08379713,2353.2,2352.8,0.35925229]
[1725929213873,2.38149713,2353.3,2352.8,0.35925229]
[1725929214274,0.08379713,2353.2,2352.8,0.35925229]
[1725929214511,0.1194825,2353.4,2352.8,0.35925229]
[1725929214512,0.20327963,2353.4,2352.8,0.35925229]
[1725929216853,0.20327963,2353.4,2352.7,0.47786911]
[1725929217146,0.20327963,2353.4,2352.6,0.70715374]
[1725929219123,0.20327963,2353.4,2352.7,0.08499857]
[1725929219316,0.20327963,2353.4,2352.6,0.70715374]
[1725929221533,0.20327963,2353.4,2352.5,2.3404]
[1725929221534,2.3164,2353.3,2352.5,2.3404]
[1725929221824,0.08379713,2353.2,2352.5,2.3404]
[1725929222221,0.08379713,2353.2,2352.3,3.0]
[1725929222433,2.4849,2353.1,2352.2,2.34]
[1725929222662,0.34066684,2353.0,2352.2,2.81376538]
[1725929223561,0.34066684,2353.0,2352.0,0.4263]
[1725929223562,6.4158374,2352.9,2352.1,0.50265733]
[1725929223723,2.3443,2352.7,2351.9,0.50270839]
[1725929223925,0.08379713,2352.6,2351.8,2.2813]
[1725929227379,0.08379713,2352.6,2351.8,6.3528374]
[1725929227792,0.08379713,2352.6,2351.9,0.08502332]
[1725929227975,0.08379713,2352.6,2352.0,2.3373]
[1725929230177,0.08379713,2352.6,2352.0,2.42232331]
[1725929230382,0.08379713,2352.6,2352.0,2.3373]
[1725929232488,0.08379713,2352.8,2352.0,2.3373]
[1725929232777,9.6586,2352.9,2352.2,2.4255]
[1725929232979,9.6586,2352.9,2352.3,0.08501243]
[1725929233188,2.3386,2352.9,2352.3,0.08501243]
[1725929233550,0.08379713,2353.0,2352.3,0.08501243]
[1725929234474,0.08379713,2353.0,2352.4,2.4261]
[1725929234662,0.08379713,2353.0,2352.5,0.25111124]
[1725929235906,2.45489713,2353.1,2352.5,0.25111124]
[1725929237558,2.45489713,2353.1,2352.2,4.4978374]
[1725929237905,2.45489713,2353.1,2352.1,2.52083233]
[1725929238120,2.3921,2353.0,2352.1,2.2786]
[1725929238410,0.08379713,2352.9,2352.1,2.2786]
[1725929239769,2.2927,2352.8,2352.1,2.2786]
[1725929240004,0.08379713,2352.7,2352.1,2.2786]
[1725929241688,0.08379713,2352.7,2352.2,1.32240559]
[1725929241872,0.08379713,2352.7,2352.3,0.36010056]
[1725929244275,0.08379713,2352.7,2352.1,3.25647974]
[1725929244523,0.08379713,2352.7,2352.2,3.30786907]
[1725929244734,0.08379713,2352.7,2352.3,1.32314763]
[1725929245024,2.48999713,2353.0,2352.3,0.08501998]
[1725929245220,2.48999713,2353.0,2352.4,2.3217]
[1725929245388,0.08379713,2353.1,2352.5,1.56388596]
[1725929245593,0.08379713,2353.1,2352.6,0.08500125]
[1725929246326,0.08379713,2353.1,2352.7,1.32321099]
[1725929246622,0.08379713,2353.1,2352.6,0.08500128]
[1725929247030,0.08379713,2353.1,2352.5,1.13353176]
[1725929247338,0.08379713,2353.1,2352.6,3.30844715]
[1725929247508,0.08379713,2353.1,2352.5,0.240672]
[1725929247833,0.08379713,2353.1,2352.6,1.3233302]
[1725929248022,0.08379713,2353.1,2352.5,0.240672]
[1725929248209,0.08379713,2353.1,2352.6,3.30833334]
[1725929248542,0.08379713,2353.1,2352.5,1.13353176]
[1725929248841,0.08379713,2353.1,2352.6,1.66887886]
[1725929249139,0.08379713,2353.1,2352.6,0.34552318]
[1725929249835,2.48999713,2353.2,2352.6,0.34552318]
[1725929250622,2.4062,2353.2,2352.6,0.34552318]
[1725929251345,2.4062,2353.2,2352.7,1.32340945]
[1725929251514,2.4062,2353.2,2352.6,0.34552318]
[1725929251712,2.4062,2353.2,2352.7,1.32340404]
[1725929252044,2.4062,2353.2,2352.6,1.23838294]
[1725929252340,2.4062,2353.2,2352.7,3.59839791]
[1725929252501,2.4062,2353.2,2352.7,0.2898605]
[1725929253510,0.08379713,2353.1,2352.7,0.2898605]
[1725929253714,0.08379713,2353.1,2352.5,1.13353176]
[1725929253952,0.08379713,2353.1,2352.6,3.30852565]
[1725929254257,0.08379713,2353.1,2352.5,1.13353176]
[1725929254474,0.08379713,2353.1,2352.6,3.30860428]
[1725929254677,0.08379713,2353.1,2352.5,1.13353176]
[1725929254847,0.08379713,2353.1,2352.6,3.30854878]
[1725929255027,0.08379713,2353.1,2352.5,1.13353176]
[1725929255377,0.08379713,2353.1,2352.6,3.30853753]
[1725929255541,0.08379713,2353.1,2352.5,0.240672]
[1725929255746,0.08379713,2353.1,2352.6,3.30860259]
[1725929255947,0.08379713,2353.1,2352.5,1.13353176]
[1725929256271,0.08379713,2353.1,2352.6,3.30854495]
[1725929256463,0.08379713,2353.1,2352.7,1.32346387]
[1725929256634,0.08379713,2353.1,2352.5,1.13353176]
[1725929256973,0.08379713,2353.1,2352.6,3.30868822]
[1725929257170,0.08379713,2353.1,2352.5,1.13353176]
[1725929257171,0.08379713,2353.1,2352.7,1.32346638]
[1725929257472,0.08379713,2353.1,2352.5,1.13353176]
[1725929257678,0.08379713,2353.1,2352.6,3.30874148]
[1725929257899,0.08379713,2353.1,2352.7,1.32349659]
[1725929258094,0.08379713,2353.1,2352.5,1.13353176]
[1725929258308,0.08379713,2353.1,2352.6,3.30873755]
[1725929258584,0.08379713,2353.1,2352.7,1.32349502]
[1725929258789,0.08379713,2353.1,2352.5,1.13353176]
[1725929258946,0.08379713,2353.1,2352.6,3.30886376]
[1725929259147,2.4576,2353.0,2352.7,1.3235455]
[1725929259410,0.08379713,2352.9,2352.5,0.89285976]
[1725929259586,0.08379713,2352.9,2352.6,3.3091302]
[1725929259750,0.08379713,2352.9,2352.4,1.31915976]
[1725929259951,0.08379713,2352.9,2352.5,3.30914695]
[1725929260152,0.08379713,2352.9,2352.6,3.30914633]
[1725929260390,0.08379713,2352.9,2352.4,1.31915976]
[1725929260593,0.08379713,2352.9,2352.5,3.30930126]
[1725929260887,0.08379713,2352.9,2352.6,3.30930985]
[1725929261090,0.08379713,2352.9,2352.4,2.41907419]
[1725929261308,0.08379713,2352.9,2352.5,3.30931563]
[1725929261593,0.08379713,2352.9,2352.6,1.32372625]
[1725929261842,2.2926,2352.8,2352.3,0.89285976]
[1725929262096,2.2926,2352.6,2352.2,0.89285976]
[1725929262264,0.08379713,2352.5,2352.1,0.89285976]
[1725929262464,2.4947,2352.4,2351.9,0.89285976]
[1725929262669,0.08379713,2352.3,2352.0,3.31014071]
[1725929262894,0.08379713,2352.3,2351.9,0.89285976]
[1725929263090,0.08379713,2352.3,2352.0,3.31017358]
[1725929263303,0.08379713,2352.3,2352.1,3.31006888]
[1725929263502,2.4947,2352.4,2352.2,1.32406943]
[1725929263654,2.3607,2352.6,2352.1,1.31315262]
[1725929263856,2.3607,2352.6,2352.2,3.3099906]
[1725929264088,2.3607,2352.6,2352.3,1.32399624]
[1725929264290,2.3607,2352.6,2352.1,1.31315262]
[1725929264500,2.3607,2352.6,2352.2,3.31002113]